bitfinex/quotes_BTCUSD_20240712
["timestamp","ask_amount","ask_price","bid_price","bid_amount"]
[1720744808210,0.2015,57645.0,57640.0,0.0634]
[1720744809414,0.06149846,57648.0,57640.0,0.0634]
[1720744809586,0.007,57645.0,57640.0,0.0644]
[1720744810304,0.015,57645.0,57640.0,0.0644]
[1720744810865,0.015,57645.0,57641.0,0.00306353]
[1720744811602,0.015,57645.0,57644.0,0.0805]
[1720744811898,0.008,57645.0,57644.0,0.0805]
[1720744812109,0.008,57645.0,57643.0,0.00306353]
[1720744812110,0.014,57645.0,57643.0,0.00306353]
[1720744812313,0.006,57645.0,57639.0,0.00306353]
[1720744812518,0.006,57645.0,57644.0,0.0805]
[1720744812740,0.008,57645.0,57644.0,0.0805]
[1720744812936,0.006,57645.0,57644.0,0.0805]
[1720744813349,0.014,57645.0,57644.0,0.0805]
[1720744813745,0.006,57645.0,57644.0,0.0805]
[1720744814285,0.014,57645.0,57644.0,0.0815]
[1720744823055,4.75483666,57650.0,57644.0,0.0815]
[1720744823258,4.75483666,57650.0,57645.0,0.00306353]
[1720744823871,4.75483666,57650.0,57645.0,0.08817788]
[1720744824078,4.77256179,57650.0,57647.0,0.0662]
[1720744824318,4.78656179,57650.0,57649.0,0.2762]
[1720744824695,4.77256179,57650.0,57649.0,0.2762]
[1720744825173,4.78656179,57650.0,57649.0,0.2762]
[1720744826264,4.79956179,57650.0,57649.0,0.2762]
[1720744826476,4.78556179,57650.0,57649.0,0.2762]
[1720744826881,4.79356179,57650.0,57649.0,0.0772]
[1720744827282,4.79356179,57650.0,57649.0,0.08026353]
[1720744827283,4.78056179,57650.0,57649.0,0.08026353]
[1720744827721,4.78856179,57650.0,57649.0,0.28126353]
[1720744827923,4.78856179,57650.0,57649.0,0.3982]
[1720744829252,4.78856179,57650.0,57649.0,0.2782]
[1720744829455,4.78856179,57650.0,57649.0,0.0782]
[1720744829961,5.05536179,57650.0,57649.0,0.002]
[1720744830521,5.08251336,57650.0,57649.0,0.002]
[1720744830928,0.0653,57645.0,57638.0,0.0786]
[1720744831125,0.2015,57642.0,57635.0,0.0829]
[1720744831340,0.2015,57642.0,57636.0,0.06951]
[1720744831939,0.01551046,57641.0,57636.0,0.06951]
[1720744832141,0.01551046,57641.0,57635.0,0.0829]
[1720744832564,0.01551046,57641.0,57628.0,0.148]
[1720744832565,0.2015,57636.0,57628.0,0.148]
[1720744832771,0.2015,57636.0,57625.0,0.7787]
[1720744832772,0.3717287,57636.0,57625.0,0.7787]
[1720744832970,0.173511,57633.0,57625.0,0.7787]
[1720744833168,0.26197238,57632.0,57631.0,0.43055405]
[1720744833392,0.30074226,57632.0,57631.0,0.43055405]
[1720744833562,0.12722826,57632.0,57631.0,0.43055405]
[1720744834852,0.13122826,57632.0,57631.0,0.43055405]
[1720744835057,0.13622826,57632.0,57631.0,0.43155405]
[1720744835260,0.10906988,57632.0,57631.0,0.001]
[1720744835882,0.10906988,57632.0,57631.0,0.001913]
[1720744837176,0.10906988,57632.0,57621.0,0.43055405]
[1720744837177,0.173533,57626.0,57621.0,0.43055405]
[1720744837375,0.2015,57623.0,57620.0,0.000913]
[1720744837650,0.01611214,57622.0,57620.0,0.000913]
[1720744839664,0.581142,57621.0,57620.0,0.000913]
[1720744839831,0.604142,57621.0,57620.0,0.000913]
[1720744840047,0.704142,57621.0,57620.0,0.000913]
[1720744840247,0.7202603,57621.0,57620.0,0.000913]
[1720744840783,0.9202603,57621.0,57620.0,0.000913]
[1720744841381,1.443584,57621.0,57620.0,0.000913]
[1720744842050,1.451584,57621.0,57620.0,0.000913]
[1720744842708,1.551584,57621.0,57620.0,0.000913]
[1720744842941,1.004489,57621.0,57620.0,0.000913]
[1720744843578,0.1471183,57621.0,57620.0,0.000913]
[1720744843847,0.0471183,57621.0,57620.0,0.082713]
[1720744844067,0.0361183,57621.0,57620.0,0.08602735]
[1720744844288,0.02,57621.0,57620.0,0.08602735]
[1720744844498,0.02,57621.0,57620.0,0.16782735]
[1720744844726,0.0532917,57621.0,57620.0,0.16782735]
[1720744845187,0.02515634,57621.0,57620.0,0.16782735]
[1720744845612,0.01715634,57621.0,57620.0,0.16782735]
[1720744845838,0.02915634,57621.0,57620.0,0.16782735]
[1720744846056,0.012,57621.0,57620.0,0.16782735]
[1720744846266,0.1,57630.0,57620.0,0.22782735]
[1720744846481,0.03917869,57629.0,57622.0,0.0639]
[1720744846690,0.03917869,57629.0,57623.0,0.00306353]
[1720744846906,0.023,57629.0,57623.0,0.00306353]
[1720744847108,0.01615429,57628.0,57623.0,0.00306353]
[1720744847532,0.023,57630.0,57623.0,0.00306353]
[1720744847731,0.01614887,57627.0,57623.0,0.00306353]
[1720744847995,0.023,57630.0,57623.0,0.00306353]
[1720744848230,0.01614346,57626.0,57623.0,0.00306353]
[1720744848445,0.014,57629.0,57623.0,0.00306353]
[1720744848663,0.01613804,57625.0,57623.0,0.00306353]
[1720744848842,0.014,57629.0,57623.0,0.00306353]
[1720744849100,0.028,57629.0,57623.0,0.00306353]
[1720744849552,0.01615429,57628.0,57624.0,0.0783]
[1720744849760,0.01615429,57628.0,57625.0,0.00306353]
[1720744850458,0.014,57627.0,57625.0,0.00306353]
[1720744850866,0.01614346,57626.0,57625.0,0.00306353]
[1720744851369,0.028,57628.0,57625.0,0.00306353]
[1720744851579,0.01614346,57626.0,57625.0,0.00306353]
[1720744851788,0.028,57628.0,57625.0,0.00306353]
[1720744851988,0.01614346,57626.0,57625.0,0.00306353]
[1720744852191,0.014,57628.0,57625.0,0.00306353]
[1720744852373,0.01614346,57626.0,57625.0,0.12306353]
[1720744852509,0.014,57628.0,57625.0,0.12306353]
[1720744852955,0.01614887,57627.0,57626.0,0.12]
[1720744853159,0.03014887,57627.0,57625.0,0.00306353]
[1720744853360,0.013,57626.0,57625.0,0.00306353]
[1720744853568,0.02914346,57626.0,57625.0,0.00306353]
[1720744853966,0.01614346,57626.0,57625.0,0.00306353]
[1720744854449,0.014,57627.0,57625.0,0.00306353]
[1720744854563,0.014,57626.0,57625.0,0.00306353]
[1720744854762,0.03014346,57626.0,57625.0,0.00306353]
[1720744854969,0.014,57626.0,57625.0,0.00306353]
[1720744855373,0.027,57626.0,57625.0,0.00306353]
[1720744855797,0.04314346,57626.0,57625.0,0.00306353]
[1720744856506,0.04314346,57626.0,57624.0,0.0783]
[1720744857533,0.01614346,57626.0,57624.0,0.0783]
[1720744857954,0.027,57626.0,57624.0,0.0783]
[1720744858145,0.01613804,57625.0,57624.0,0.0783]
[1720744858571,0.13589744,57633.0,57624.0,0.0783]
[1720744858776,0.023,57632.0,57625.0,0.00306353]
[1720744858952,0.03917595,57632.0,57625.0,0.00306353]
[1720744859959,0.008,57626.0,57625.0,0.00306353]
[1720744860367,0.008,57626.0,57624.0,0.0783]
[1720744860643,0.02414346,57626.0,57624.0,0.0783]
[1720744860844,0.013,57626.0,57624.0,0.0793]
[1720744861054,0.01613804,57625.0,57624.0,0.0793]
[1720744861447,0.005,57626.0,57624.0,0.001]
[1720744861661,0.023,57625.0,57624.0,0.001]
[1720744861877,0.03913804,57625.0,57624.0,0.001]
[1720744862089,0.03913804,57625.0,57620.0,0.200613]
[1720744862505,0.04213804,57625.0,57621.0,0.08511435]
[1720744862721,0.01913804,57625.0,57622.0,0.2595]
[1720744862931,0.01913804,57625.0,57623.0,0.26256353]
[1720744863131,0.003,57625.0,57623.0,0.26256353]
[1720744863540,0.007,57625.0,57623.0,0.14256353]
[1720744863741,0.007,57625.0,57623.0,0.1395]
[1720744863947,0.003,57625.0,57623.0,0.1395]
[1720744864151,0.004,57625.0,57623.0,0.1395]
[1720744864566,0.008,57625.0,57623.0,0.1395]
[1720744864776,0.008,57625.0,57620.0,0.20602735]
[1720744864777,0.008,57625.0,57624.0,0.2595]
[1720744864981,0.004,57625.0,57624.0,0.1395]
[1720744865186,0.004,57625.0,57624.0,0.2595]
[1720744865395,0.008,57625.0,57624.0,0.2595]
[1720744865594,0.008,57625.0,57624.0,0.1395]
[1720744865827,0.004,57625.0,57624.0,0.1395]
[1720744866453,0.1,57632.0,57625.0,0.1474]
[1720744866629,0.05016092,57631.0,57626.0,0.00306353]
[1720744866831,0.02716092,57630.0,57626.0,0.00306353]
[1720744867240,0.01617134,57629.0,57626.0,0.00306353]
[1720744867461,0.02716128,57628.0,57626.0,0.00306353]
[1720744867659,0.02716128,57628.0,57625.0,0.1474]
[1720744867879,0.01616051,57627.0,57625.0,0.1474]
[1720744868105,0.01616051,57627.0,57626.0,0.001]
[1720744868543,0.036,57631.0,57626.0,0.121]
[1720744868757,0.036,57631.0,57627.0,0.00306353]
[1720744868935,0.008,57628.0,57627.0,0.00306353]
[1720744869163,0.008,57628.0,57626.0,0.121]
[1720744869366,0.008,57628.0,57627.0,0.00306353]
[1720744869576,0.036,57631.0,57627.0,0.00306353]
[1720744869783,0.02716094,57630.0,57627.0,0.00306353]
[1720744869985,0.02716094,57630.0,57626.0,0.12406353]
[1720744870166,0.009,57628.0,57626.0,0.12506353]
[1720744870522,0.009,57628.0,57626.0,0.122]
[1720744870725,0.009,57628.0,57627.0,0.00306353]
[1720744871167,0.035,57631.0,57627.0,0.00306353]
[1720744871553,0.035,57631.0,57627.0,0.001]
[1720744871554,0.02716088,57630.0,57627.0,0.001]
[1720744871941,0.008,57628.0,57627.0,0.002]
[1720744872147,0.008,57628.0,57627.0,0.2619]
[1720744872382,0.008,57628.0,57627.0,0.26496353]
[1720744872591,0.008,57628.0,57627.0,0.78555153]
[1720744872996,0.01735917,57632.0,57628.0,0.173524]
[1720744873211,0.01735917,57632.0,57631.0,0.2607]
[1720744873387,0.00083,57633.0,57632.0,0.2601]
[1720744874444,0.01782589,57633.0,57632.0,0.2601]
[1720744874869,0.00183,57633.0,57632.0,1.327672]
[1720744875280,0.00183,57633.0,57632.0,0.980643]
[1720744876327,0.00083,57633.0,57632.0,0.982643]
[1720744876569,0.00083,57633.0,57632.0,1.07082088]
[1720744876775,0.00083,57633.0,57632.0,1.41984988]
[1720744876950,0.00083,57633.0,57632.0,1.41678635]
[1720744877571,0.00083,57633.0,57632.0,1.06975735]
[1720744877782,0.00083,57633.0,57632.0,1.07282088]
[1720744877996,0.00083,57633.0,57632.0,1.59007858]
[1720744878202,0.00083,57633.0,57632.0,1.64701505]
[1720744878356,0.00083,57633.0,57632.0,1.99404405]
[1720744878564,0.00083,57633.0,57632.0,2.49404405]
[1720744879374,0.00083,57633.0,57632.0,2.49204405]
[1720744879571,0.00183,57633.0,57632.0,2.49604405]
[1720744879775,0.00083,57648.0,57632.0,2.49604405]
[1720744879776,0.00083,57648.0,57647.0,0.520408]
[1720744879955,0.00083,57648.0,57647.0,0.780208]
[1720744880173,0.01702171,57648.0,57647.0,0.780208]
[1720744880368,0.00083,57648.0,57647.0,0.780208]
[1720744880570,0.01702171,57648.0,57647.0,0.433269]
[1720744880795,0.00083,57648.0,57647.0,0.433269]
[1720744881004,0.01702171,57648.0,57647.0,0.433269]
[1720744881229,0.01702171,57648.0,57647.0,0.780208]
[1720744881230,0.00083,57648.0,57647.0,0.780208]
[1720744881451,0.01702171,57648.0,57647.0,0.780208]
[1720744881627,0.00083,57648.0,57647.0,0.780208]
[1720744881806,0.03408604,57648.0,57647.0,1.3013757]
[1720744882024,0.00083,57648.0,57647.0,0.9544367]
[1720744882220,0.01705425,57648.0,57647.0,0.9544367]
[1720744882422,0.00083,57648.0,57647.0,0.9544367]
[1720744882695,4.51013693,57650.0,57648.0,0.173464]
[1720744882984,4.51013693,57650.0,57649.0,0.26376353]
[1720744884102,4.51013693,57650.0,57649.0,0.2607]
[1720744884308,4.51013693,57650.0,57649.0,0.2617]
[1720744885026,4.51013693,57650.0,57649.0,0.1417]
[1720744885027,4.52782329,57650.0,57649.0,0.1417]
[1720744885241,4.52782329,57650.0,57649.0,0.001]
[1720744886071,4.52782329,57650.0,57649.0,0.003]
[1720744886587,4.52782329,57650.0,57649.0,0.001]
[1720744886796,4.52782329,57650.0,57641.0,0.1404]
[1720744887274,0.17347,57647.0,57639.0,0.1655]
[1720744887428,0.2015,57646.0,57638.0,0.0643]
[1720744888005,0.01627844,57645.0,57638.0,0.14941435]
[1720744888210,0.01627844,57645.0,57638.0,0.26941435]
[1720744888575,4.70105199,57650.0,57639.0,0.001]
[1720744888777,0.01627303,57644.0,57639.0,0.001]
[1720744889104,0.023,57649.0,57639.0,0.001]
[1720744889285,0.01626762,57643.0,57639.0,0.001]
[1720744889493,0.0151,57642.0,57639.0,0.001]
[1720744889706,0.01624271,57641.0,57639.0,0.001]
[1720744890056,0.399493,57640.0,57631.0,0.0618]
[1720744890240,0.173494,57639.0,57630.0,0.0826]
[1720744890460,0.023,57638.0,57628.0,0.0618]
[1720744890667,0.01620566,57637.0,57628.0,0.0618]
[1720744890971,0.023,57636.0,57628.0,0.0618]
[1720744891375,0.01619483,57635.0,57628.0,0.0618]
[1720744892245,0.01619483,57635.0,57628.0,0.0628]
[1720744893375,0.01619483,57635.0,57628.0,0.0658]
[1720744893724,0.01619483,57635.0,57628.0,0.0648]
[1720744893927,0.01619483,57635.0,57628.0,0.0678]
[1720744894580,0.01619483,57635.0,57632.0,0.2]
[1720744895026,0.01619483,57635.0,57634.0,0.16541435]
[1720744895229,0.21916794,57640.0,57634.0,0.16541435]
[1720744895347,0.01621858,57635.0,57634.0,0.0803]
[1720744895548,0.21916794,57640.0,57634.0,0.0803]
[1720744895763,0.01621899,57635.0,57634.0,0.0803]
[1720744895978,0.21916794,57640.0,57634.0,0.0803]
[1720744896191,0.01621899,57635.0,57634.0,0.0803]
[1720744896392,0.21916794,57640.0,57634.0,0.0803]
[1720744896813,0.21916794,57640.0,57635.0,0.0647]
[1720744896814,0.01624064,57639.0,57635.0,0.0647]
[1720744897194,0.01624064,57639.0,57632.0,0.003]
[1720744897392,0.023,57638.0,57632.0,0.003]
[1720744897592,0.023,57638.0,57630.0,0.12]
[1720744897874,0.01622982,57637.0,57630.0,0.12]
[1720744898906,0.01622982,57637.0,57629.0,0.066]
[1720744899711,0.01622982,57637.0,57630.0,0.12]
[1720744899922,0.01622982,57637.0,57629.0,0.066]
[1720744900124,0.01622982,57637.0,57630.0,0.12]
[1720744900560,0.01622982,57637.0,57633.0,0.12]
[1720744900955,0.01622982,57637.0,57632.0,0.12]
[1720744901551,0.01622982,57637.0,57633.0,0.12]
[1720744902090,0.01622982,57637.0,57632.0,0.12]
[1720744902301,0.01622982,57637.0,57630.0,0.00306353]
[1720744902302,0.01622982,57637.0,57633.0,0.12]
[1720744902506,0.01622982,57637.0,57634.0,0.08511435]
[1720744902708,0.21916794,57640.0,57635.0,0.12]
[1720744902881,0.21916794,57640.0,57634.0,0.23101435]
[1720744902882,0.01766794,57640.0,57636.0,0.12306353]
[1720744903313,0.1,57644.0,57636.0,0.12306353]
[1720744903441,0.023,57643.0,57636.0,0.12]
[1720744903662,0.023,57643.0,57634.0,0.1459]
[1720744905017,0.031,57643.0,57634.0,0.1469]
[1720744905391,0.031,57643.0,57634.0,0.2669]
[1720744905821,0.031,57643.0,57636.0,0.001]
[1720744906020,0.038,57643.0,57636.0,0.001]
[1720744906181,0.015,57643.0,57640.0,0.2]
[1720744906385,0.008,57643.0,57640.0,0.2]
[1720744906842,0.008,57643.0,57641.0,0.00306353]
[1720744906843,0.015,57643.0,57641.0,0.00306353]
[1720744907373,0.008,57643.0,57641.0,0.00306353]
[1720744907699,0.12120931,57646.0,57641.0,0.00306353]
[1720744907908,0.023,57645.0,57641.0,0.00306353]
[1720744908129,0.008,57643.0,57641.0,0.00306353]
[1720744908956,0.015,57643.0,57641.0,0.00306353]
[1720744909118,0.007,57643.0,57641.0,0.00306353]
[1720744909329,0.007,57643.0,57641.0,0.00406353]
[1720744909330,0.015,57643.0,57641.0,0.00406353]
[1720744909556,0.008,57643.0,57641.0,0.00406353]
[1720744909979,0.015,57643.0,57641.0,0.00506353]
[1720744911108,0.015,57643.0,57641.0,0.002]
[1720744911496,0.015,57643.0,57642.0,0.1425]
[1720744912421,0.008,57643.0,57642.0,0.1425]
[1720744912834,0.007,57643.0,57642.0,0.1435]
[1720744913086,0.015,57643.0,57642.0,0.1445]
[1720744913620,0.015,57643.0,57642.0,0.1463162]
[1720744914441,0.015,57643.0,57642.0,0.1445]
[1720744915203,0.015,57643.0,57642.0,0.26756353]
[1720744916854,0.015,57643.0,57642.0,0.14756353]
[1720744917026,0.015,57643.0,57642.0,0.1445]
[1720744917580,0.015,57643.0,57642.0,0.14756353]
[1720744918129,0.02765992,57643.0,57642.0,0.1445]
[1720744922740,0.02765992,57643.0,57642.0,0.002]
[1720744922942,0.07781419,57643.0,57642.0,0.002]
[1720744923595,0.02765992,57643.0,57642.0,0.1441]
[1720744926383,0.02765992,57643.0,57642.0,0.54921435]
[1720744926515,0.02765992,57643.0,57642.0,1.73989605]
[1720744926716,0.015,57643.0,57642.0,2.08686505]
[1720744927118,0.015,57643.0,57642.0,2.14686505]
[1720744927319,0.015,57643.0,57642.0,2.08686505]
[1720744927540,0.008,57643.0,57642.0,1.73889605]
[1720744927929,0.002,57643.0,57642.0,1.73789605]
[1720744928334,0.002,57643.0,57642.0,2.08486505]
[1720744928533,0.002,57643.0,57642.0,2.14486505]
[1720744929148,0.002,57643.0,57642.0,2.08486505]
[1720744929347,0.002,57643.0,57642.0,2.14486505]
[1720744929618,4.51013693,57650.0,57649.0,0.4555]
[1720744929829,4.51013693,57650.0,57649.0,0.628963]
[1720744930039,4.52543149,57650.0,57649.0,0.628963]
[1720744930464,4.52543149,57650.0,57649.0,0.63202653]
[1720744931308,4.52543149,57650.0,57649.0,0.63502653]
[1720744931507,4.52543149,57650.0,57649.0,0.63802653]
[1720744932334,4.52543149,57650.0,57649.0,0.634963]
[1720744932517,4.52543149,57650.0,57649.0,0.4615]
[1720744932695,4.52543149,57650.0,57649.0,0.634963]
[1720744935364,4.52543149,57650.0,57649.0,0.4615]
[1720744936006,4.24843872,57650.0,57649.0,0.4615]
[1720744937125,4.24843872,57650.0,57649.0,0.3415]
[1720744937439,4.24843872,57650.0,57649.0,0.006]
[1720744937881,4.28653872,57650.0,57649.0,0.006]
[1720744938087,4.48793872,57650.0,57649.0,0.006]
[1720744938740,4.48793872,57650.0,57649.0,0.003]
[1720744940591,4.51509075,57650.0,57642.0,0.0652]
[1720744940800,0.173469,57647.0,57638.0,0.0601]
[1720744941010,0.2014,57645.0,57638.0,0.0601]
[1720744941228,0.2014,57645.0,57634.0,0.50006605]
[1720744941229,0.2014,57639.0,57634.0,0.50006605]
[1720744941436,0.2014,57639.0,57634.0,0.069512]
[1720744941656,0.3328287,57644.0,57635.0,0.0601]
[1720744941657,0.01518918,57638.0,57635.0,0.0601]
[1720744941883,0.01518918,57638.0,57635.0,0.22381435]
[1720744942088,0.3014,57644.0,57635.0,0.22381435]
[1720744942292,0.01515359,57637.0,57636.0,0.12]
[1720744942500,0.3014,57644.0,57636.0,0.12]
[1720744942501,0.2014,57644.0,57636.0,0.12]
[1720744942723,0.2014,57644.0,57640.0,0.12]
[1720744942934,0.01518607,57643.0,57641.0,0.26521435]
[1720744943139,0.01518607,57643.0,57642.0,0.1986]
[1720744943322,4.23314416,57650.0,57643.0,0.12]
[1720744943582,4.23314416,57650.0,57642.0,0.1986]
[1720744943583,0.05015337,57649.0,57642.0,0.1986]
[1720744943783,0.02715337,57648.0,57642.0,0.1986]
[1720744945015,0.02715337,57648.0,57642.0,0.0786]
[1720744945217,0.0396,57647.0,57638.0,0.2]
[1720744945800,0.012,57644.0,57640.0,0.001]
[1720744946378,0.0396,57647.0,57637.0,0.0659]
[1720744946583,0.05015502,57646.0,57638.0,0.001]
[1720744946783,0.02715502,57645.0,57638.0,0.001]
[1720744947333,0.02715502,57645.0,57637.0,0.0659]
[1720744947949,0.02715502,57645.0,57636.0,0.081]
[1720744947950,0.173482,57643.0,57636.0,0.081]
[1720744948156,0.05015502,57642.0,57634.0,0.0658]
[1720744948365,0.05015502,57642.0,57631.0,0.57915405]
[1720744948366,0.37413402,57641.0,57631.0,0.57915405]
[1720744948570,0.2014,57638.0,57631.0,0.57915405]
[1720744948778,0.2014,57638.0,57631.0,0.43055405]
[1720744948989,0.0381,57637.0,57631.0,0.43055405]
[1720744949205,0.03814192,57637.0,57631.0,0.43055405]
[1720744949847,0.03814192,57637.0,57623.0,0.0609]
[1720744949848,0.374916,57632.0,57623.0,0.0609]
[1720744950056,0.023,57631.0,57623.0,0.0609]
[1720744950261,0.03812171,57631.0,57623.0,0.130425]
[1720744950682,0.03812171,57631.0,57623.0,0.0609]
[1720744951331,0.01512171,57631.0,57628.0,0.0762]
[1720744951535,0.01512171,57631.0,57629.0,0.0609]
[1720744951720,0.008,57637.0,57629.0,0.0609]
[1720744951919,0.008,57637.0,57629.0,0.2609]
[1720744951920,0.01511018,57630.0,57629.0,0.2609]
[1720744952122,0.023,57636.0,57629.0,0.2609]
[1720744952324,0.007,57632.0,57629.0,0.2609]
[1720744952675,0.003,57632.0,57629.0,0.2609]
[1720744952876,0.023,57639.0,57629.0,0.2609]
[1720744953077,0.011,57637.0,57630.0,0.12]
[1720744953283,0.023,57636.0,57630.0,0.12]
[1720744953483,0.03814267,57636.0,57630.0,0.12]
[1720744953686,0.004,57632.0,57630.0,0.12]
[1720744955475,0.004,57632.0,57629.0,0.2619]
[1720744956056,0.023,57636.0,57629.0,0.2619]
[1720744956183,0.003,57637.0,57630.0,0.12]
[1720744956377,0.003,57637.0,57629.0,0.2619]
[1720744956378,0.01512098,57635.0,57634.0,0.08511435]
[1720744956587,0.1,57642.0,57634.0,0.12]
[1720744956797,0.1,57642.0,57635.0,0.1424]
[1720744957504,0.003,57637.0,57635.0,0.1424]
[1720744959547,0.1217574,57643.0,57635.0,0.1424]
[1720744959824,0.023,57642.0,57635.0,0.1424]
[1720744959970,0.032,57642.0,57635.0,0.1424]
[1720744960373,0.023,57642.0,57635.0,0.1424]
[1720744960578,0.005,57637.0,57635.0,0.1424]
[1720744961019,0.002,57637.0,57635.0,0.1424]
[1720744961358,0.002,57637.0,57636.0,0.00306353]
[1720744961771,0.002,57637.0,57636.0,0.12306353]
[1720744962150,0.002,57637.0,57635.0,0.1424]
[1720744962352,0.023,57642.0,57636.0,0.00306353]
[1720744962735,0.04,57642.0,57635.0,0.1434]
[1720744962905,0.04,57642.0,57636.0,0.00306353]
[1720744963113,0.01515242,57641.0,57639.0,0.139]
[1720744963347,0.01515242,57641.0,57640.0,0.12306353]
[1720744963555,0.01515242,57641.0,57640.0,1.06132405]
[1720744963713,0.01515242,57641.0,57640.0,0.88783305]
[1720744963914,0.008,57642.0,57641.0,0.259]
[1720744964166,0.009,57642.0,57641.0,0.14206353]
[1720744964375,0.0217574,57643.0,57641.0,0.14206353]
[1720744964528,4.43454416,57650.0,57641.0,0.14206353]
[1720744964929,0.03820221,57649.0,57644.0,0.12]
[1720744965131,0.03820221,57649.0,57645.0,0.00306353]
[1720744965828,0.03820221,57649.0,57642.0,0.00306353]
[1720744966827,0.05120221,57649.0,57642.0,0.00306353]
[1720744967101,0.03820221,57649.0,57642.0,0.00306353]
[1720744967299,0.03820221,57649.0,57644.0,0.12]
[1720744967483,0.03820221,57649.0,57645.0,0.00306353]
[1720744967484,0.06120221,57649.0,57645.0,0.00306353]
[1720744967697,0.06120221,57649.0,57648.0,0.12]
[1720744967698,0.03820221,57649.0,57648.0,0.12]
[1720744968060,0.03820221,57649.0,57647.0,0.00306353]
[1720744968260,0.03820221,57649.0,57648.0,0.2632]
[1720744968417,0.03820221,57649.0,57648.0,0.26626353]
[1720744968619,0.03820221,57649.0,57648.0,0.43972953]
[1720744968865,0.03903221,57649.0,57648.0,0.78666253]
[1720744969065,0.02903221,57649.0,57648.0,0.78666253]
[1720744969243,0.01603221,57649.0,57648.0,0.78666253]
[1720744969441,0.02603221,57649.0,57648.0,0.78666253]
[1720744969679,0.02603221,57649.0,57648.0,1.13359553]
[1720744969872,0.01603221,57649.0,57648.0,1.19359553]
[1720744970071,0.02903221,57649.0,57648.0,1.190532]
[1720744970278,0.02903221,57649.0,57648.0,1.136532]
[1720744970482,0.01603221,57649.0,57648.0,1.13959553]
[1720744970861,0.01703221,57649.0,57648.0,1.13959553]
[1720744971588,0.01703221,57649.0,57648.0,1.136532]
[1720744971793,0.01703221,57649.0,57648.0,1.13959553]
[1720744972257,0.01703221,57649.0,57648.0,1.136532]
[1720744972678,0.01703221,57649.0,57648.0,2.2136937]
[1720744972891,0.01703221,57649.0,57648.0,2.21675723]
[1720744973064,0.00183,57649.0,57648.0,2.38369023]
[1720744973202,4.23314416,57650.0,57648.0,2.38369023]
[1720744973203,4.23314416,57650.0,57649.0,1.532844]
[1720744973456,4.23314416,57650.0,57649.0,2.05306323]
[1720744974465,4.23414416,57650.0,57649.0,2.05506323]
[1720744974911,4.24937105,57650.0,57649.0,2.05506323]
[1720744975335,4.24937105,57650.0,57649.0,2.15506323]
[1720744975545,4.09947105,57650.0,57649.0,2.45506323]
[1720744975706,4.09947105,57650.0,57649.0,2.46506323]
[1720744976047,4.09947105,57650.0,57649.0,2.36506323]
[1720744976263,4.09947105,57650.0,57649.0,2.16506323]
[1720744976678,4.09947105,57650.0,57649.0,1.8050727]
[1720744976896,4.09947105,57650.0,57649.0,2.5190727]
[1720744977094,4.09947105,57650.0,57649.0,2.5170727]
[1720744977095,4.09847105,57650.0,57649.0,2.5170727]
[1720744977302,4.09847105,57650.0,57649.0,2.1841457]
[1720744977504,4.09847105,57650.0,57649.0,1.6701457]
[1720744977718,4.09847105,57650.0,57649.0,2.1561457]
[1720744978005,4.09847105,57650.0,57649.0,2.5310727]
[1720744978356,4.09847105,57650.0,57649.0,2.1841457]
[1720744978578,4.09847105,57650.0,57649.0,0.5368287]
[1720744978755,4.09847105,57650.0,57649.0,0.4568287]
[1720744978952,4.09847105,57650.0,57649.0,0.6568287]
[1720744979268,3.81401897,57650.0,57649.0,0.8302917]
[1720744979637,3.81401897,57650.0,57649.0,0.8162917]
[1720744979845,3.81401897,57650.0,57649.0,0.6428287]
[1720744980046,3.81401897,57650.0,57649.0,0.6568287]
[1720744980246,3.81401897,57650.0,57649.0,0.8162917]
[1720744980373,3.81401897,57650.0,57649.0,1.1632187]
[1720744980588,3.81501897,57650.0,57649.0,1.1772187]
[1720744980791,3.81501897,57650.0,57649.0,0.8302917]
[1720744981634,3.81501897,57650.0,57649.0,0.4866]
[1720744982073,3.81501897,57650.0,57649.0,0.460063]
[1720744982217,3.81501897,57650.0,57649.0,0.2866]
[1720744982431,3.81501897,57650.0,57649.0,0.4866]
[1720744982685,3.81501897,57650.0,57649.0,0.2866]
[1720744983006,3.81501897,57650.0,57649.0,0.4866]
[1720744983387,3.81501897,57650.0,57649.0,0.028]
[1720744984378,3.81401897,57650.0,57646.0,0.40511435]
[1720744984580,3.81401897,57650.0,57649.0,0.2]
[1720744984781,3.81401897,57650.0,57649.0,0.203]
[1720744985183,3.81401897,57650.0,57649.0,0.2]
[1720744985537,3.81501897,57650.0,57649.0,0.2]
[1720744985983,3.81501897,57650.0,57649.0,0.205]
[1720744986189,3.81501897,57650.0,57649.0,0.005]
[1720744986391,3.81501897,57650.0,57648.0,0.12]
[1720744986705,3.81501897,57650.0,57647.0,0.12]
[1720744986909,3.81501897,57650.0,57649.0,0.001]
[1720744987335,3.81401897,57650.0,57649.0,0.001]
[1720744987664,3.81401897,57650.0,57648.0,0.12]
[1720744987864,3.81401897,57650.0,57648.0,0.121]
[1720744988080,3.81401897,57650.0,57649.0,0.12]
[1720744989947,3.81401897,57650.0,57649.0,0.12406353]
[1720744990314,3.81401897,57650.0,57649.0,0.294463]
[1720744992174,3.81401897,57650.0,57649.0,1.3655457]
[1720744993309,3.81401897,57650.0,57649.0,1.3645457]
[1720744993688,3.79879208,57650.0,57649.0,1.3725457]
[1720744994215,3.81393063,57650.0,57649.0,1.3645457]
[1720744994621,3.81393063,57650.0,57649.0,1.3785457]
[1720744994862,3.81393063,57650.0,57649.0,1.3925457]
[1720744994863,3.81493063,57650.0,57649.0,1.3925457]
[1720744997349,3.81015854,57650.0,57649.0,1.3925457]
[1720744997928,3.53723204,57650.0,57649.0,1.7394727]
[1720745005698,3.53723204,57650.0,57649.0,1.6794727]
[1720745006723,3.53723204,57650.0,57649.0,0.028]
[1720745006927,3.68203204,57650.0,57649.0,0.028]